Cogmind - Beta 12 --- EXPLORER MODE // 2023.11.19 @ 04:45:52 Player: BeebBeebBoob Result: Escaped! Performance ------------- Evolutions (9) 4500 Regions Visited (21) 4200 Robots Destroyed (8) 40 Value Destroyed (763) 763 Prototype IDs (24) 480 Alien Tech Used (0) 0 Bonus (9793) 9793 TOTAL SCORE: 19776 Bonus ------- Follower Combat Kills 1052 Entered Garrisons 600 Used RIF Installer 1000 Entered DSFs 1000 Win 3000 Win Speed 3141 Cogmind --------- Core Integrity 1600/1600 Matter 185/300 Energy 148/150 System Corruption 0% Temperature Cool (4) Movement Flying (32) Location To Epsilon Eridani Parts ------- > --- POWER (2) -------- Micro Antimatter Reactor > --- PROPULSION (6) --- Impulse Thruster Field Propulsion Array Q-thruster Impulse Thruster Array > --- UTILITY (15) ----- Large Storage Unit Machine Analyzer Advanced Visual Processing Unit Enhanced Optical Array Signal Interpreter Improved Signal Interpreter Improved Signal Interpreter Authchip [Device] Relay Coupler [NC] (46) Relay Coupler [Swarmer] (30) Relay Coupler [Swarmer] (72) Relay Coupler [Grunt] (18) Relay Coupler [Grunt] (51) Relay Coupler [Hunter] (1) > --- WEAPON (3) ------- Advanced Remote Datajack Advanced Remote Datajack > --- INVENTORY (15) --- Advanced Heavy Siege Treads Titanium Leg Impulse Thruster Array Peak State ------------ > --- POWER ------------ Light Antimatter Reactor Micro Antimatter Reactor > --- PROPULSION ------- Field Propulsion Array Q-thruster Impulse Thruster Array > --- UTILITY ---------- Machine Analyzer Advanced Visual Processing Unit Signal Interpreter Improved Signal Interpreter Improved Signal Interpreter Authchip [Device] Relay Coupler [NC] Relay Coupler [NC] Relay Coupler [Swarmer] Relay Coupler [Swarmer] Relay Coupler [Grunt] Relay Coupler [Grunt] Relay Coupler [Hunter] > --- WEAPON ----------- Railgun Advanced Remote Datajack Advanced Remote Datajack > --- INVENTORY -------- Advanced Heavy Siege Treads Titanium Leg Impulse Thruster Array [Rating: 115] Favorites ----------- Power Fission Core Engine Ion Engine Power Core Fission Core Reactor Light Antimatter Reactor Propulsion Improved Cesium-ion Thruster Leg Aluminum Leg Flight Unit Improved Cesium-ion Thruster Utility Relay Coupler [NC] Device Improved Sensor Array Storage Large Storage Unit Processor Signal Interpreter Hackware Relay Coupler [NC] Weapon Field Laser Energy Gun Field Laser Ballistic Gun Railgun Special Weapon Remote Datajack Special Melee Weapon Improved Datajack Build | -11 -10 -9 -8 -8 -8 -8 -7 -6 -6 -5 -5 -5 -5 -4 -4 -3 -3 -3 -3 -2 -1 ------- Run | Jun Mat Mat Mat Gar Mat Gar Fac Fac DSF Fac Was Fac DSF Fac Ext Res Gar Res Arm Res Acc Slots Evolved 19 | . 1 2 2 . . . 2 2 . 2 . . . 2 . 2 . . . 2 2 Power 1 | . . . . . . . . . . . . . . 1 . . . . . . . Propulsion 4 | . . 1 1 . . . . 1 . . . . . . . . . . . . 1 Utility 13 | . 1 1 1 . . . 2 1 . 2 . . . . . 2 . . . 2 1 Weapon 1 | . . . . . . . . . . . . . . 1 . . . . . . . Parts Attached 96 | 7 8 4 1 3 8 1 10 1 2 1 . 4 5 3 2 2 10 3 14 5 2 Power 14 | 1 1 . . . 1 . 1 . 1 . . 1 . 1 . . 1 1 4 1 . Engine 3 | 1 1 . . . 1 . . . . . . . . . . . . . . . . Core 4 | . . . . . . . 1 . 1 . . 1 . 1 . . . . . . . Reactor 7 | . . . . . . . . . . . . . . . . . 1 1 4 1 . Propulsion 33 | 2 2 1 1 . 5 . 4 . 1 . . 3 . 1 1 2 3 . 4 2 1 Treads . | . . . . . . . . . . . . . . . . . . . . . . Leg 3 | 2 . . . . . . . . . . . . . . . . 1 . . . . Wheel . | . . . . . . . . . . . . . . . . . . . . . . Hover . | . . . . . . . . . . . . . . . . . . . . . . Flight 30 | . 2 1 1 . 5 . 4 . 1 . . 3 . 1 1 2 2 . 4 2 1 Utility 30 | 2 1 1 . 2 1 1 3 1 . 1 . . 5 . 1 . 5 . 3 2 1 Device 5 | . . . . . . . 1 1 . . . . 3 . . . . . . . . Storage 1 | . . . . . . . . . . . . . . . . . . . . 1 . Processor 10 | 2 1 1 . . 1 . 1 . . . . . 2 . . . . . . 1 1 Hackware 14 | . . . . 2 . 1 1 . . 1 . . . . 1 . 5 . 3 . . Protection . | . . . . . . . . . . . . . . . . . . . . . . Artifact . | . . . . . . . . . . . . . . . . . . . . . . Weapon 19 | 2 4 2 . 1 1 . 2 . . . . . . 1 . . 1 2 3 . . Energy Gun 9 | 2 4 2 . . 1 . . . . . . . . . . . . . . . . Energy Cannon . | . . . . . . . . . . . . . . . . . . . . . . Ballistic Gun 2 | . . . . . . . . . . . . . . . . . 1 . 1 . . Ballistic Cannon . | . . . . . . . . . . . . . . . . . . . . . . Launcher . | . . . . . . . . . . . . . . . . . . . . . . Special Weapon 3 | . . . . . . . 1 . . . . . . . . . . . 2 . . Impact Weapon . | . . . . . . . . . . . . . . . . . . . . . . Slashing Weapon . | . . . . . . . . . . . . . . . . . . . . . . Piercing Weapon . | . . . . . . . . . . . . . . . . . . . . . . Special Melee Weapon 5 | . . . . 1 . . 1 . . . . . . 1 . . . 2 . . . Unidentified Prototypes 2 | . . . . . 1 . . . . . . 1 . . . . . . . . . Corrupted Parts 1 | . 1 . . . . . . . . . . . . . . . . . . . . System Corruption 1 | . 1 . . . . . . . . . . . . . . . . . . . . Parts Lost 27 | . 1 . . 1 . . . . 1 . . . 2 . 4 1 12 . 4 1 . Power 5 | . . . . 1 . . . . . . . . . . . . 2 . 2 . . Propulsion 9 | . . . . . . . . . . . . . 1 . 2 1 4 . 1 . . Utility 6 | . . . . . . . . . 1 . . . . . 2 . 3 . . . . Weapon 7 | . 1 . . . . . . . . . . . 1 . . . 3 . 1 1 . Highest Loss Streak 12 | . 1 . . 1 . . . . 1 . . . 2 . 3 1 12 . 2 1 . To Critical Strikes . | . . . . . . . . . . . . . . . . . . . . . . Average Slot Usage (%) 87 | . 87 93 91 92 99 93 99 93 100 85 88 87 86 90 91 79 76 55 80 81 79 Engine 3 | . 12 10 8 7 7 8 . . . . . . . . . . . . . . . Core 2 | . . . . . . . 6 6 6 5 5 4 5 7 10 9 3 . . . . Reactor 1 | . . . . . . . . . . . . . . . . . 2 2 3 4 3 Leg 3 | . 19 . . . . . . . . . . . . . . . . . . . . Flight 19 | . 5 30 33 33 33 33 28 25 31 27 27 27 25 24 24 20 15 4 12 12 13 Device 3 | . . . . . . . 7 12 12 5 5 5 6 15 12 9 6 . . . . Processor 23 | . 27 33 33 30 25 25 28 25 25 22 22 22 22 20 20 18 18 18 18 18 21 Hackware 16 | . . . . 4 16 9 14 12 12 13 16 16 16 15 13 13 21 27 35 33 28 Energy Gun 7 | . 23 20 16 13 8 8 7 6 6 5 5 5 3 . . . . . . . . Special Weapon 2 | . . . . . . . 2 6 6 5 5 5 5 5 5 4 2 . 2 8 7 Special Melee Weapon 2 | . . . . 2 8 8 4 . . . . . . 3 5 4 2 3 3 . . Naked Turns . | . . . . . . . . . . . . . . . . . . . . . . Heaviest Build 44 | 8 11 9 9 9 9 9 13 14 18 17 17 17 18 22 22 21 23 16 28 44 38 Greatest Support 46 | 20 20 12 16 16 20 20 24 24 30 30 30 30 30 31 32 33 36 16 39 39 46 Greatest Overweight (x) 1 | 1 1 . . . . . . . . . . . . . . . 1 . . 1 . Average Overweight (x) . | . . . . . . . . . . . . . . . . . . . . . . Largest Inventory Capacity 15 | 5 5 5 5 5 5 5 5 5 5 5 5 5 5 5 5 5 5 5 5 15 15 Average Capacity 5 | 5 5 5 5 5 5 5 5 5 5 5 5 5 5 5 5 5 5 5 5 5 15 Most Carried 5 | . 5 5 5 5 5 5 5 4 5 5 4 5 5 5 4 5 5 5 5 5 5 Average Carried 4 | . 3 3 5 4 4 4 4 4 4 4 4 4 4 4 3 4 3 5 4 4 5 Final Capacity 15 | 5 5 5 5 5 5 5 5 5 5 5 5 5 5 5 5 5 5 5 5 15 15 Final Carried 5 | . 5 5 5 5 5 5 5 4 5 4 4 5 5 4 3 5 5 5 4 5 5 Class Distribution -------------------- 22% | Hacker-Mutant 21% | Bothacker-Mutant 18% | Hacker-Scout 17% | Hacker-Sprinter 10% | Hacker-Ninja 3% | Bothacker-Sprinter Dominant Class ---------------- Hacker-Mutant | -10/Materials Hacker-Mutant | -9/Materials Hacker-Mutant | -8/Materials Hacker-Sprinter | -8/Garrison Hacker-Sprinter | -8/Materials Hacker-Sprinter | -8/Garrison Hacker-Scout | -7/Factory Hacker-Scout | -6/Factory Hacker-Scout | -6/DSF Hacker-Scout | -5/Factory Hacker-Sprinter | -5/Waste Hacker-Sprinter | -5/Factory Hacker-Sprinter | -5/DSF Hacker-Ninja | -4/Factory Hacker-Ninja | -4/Extension Hacker-Ninja | -3/Research Bothacker-Ninja | -3/Garrison Hacker-Mutant | -3/Research Bothacker-Mutant | -3/Armory Bothacker-Mutant | -2/Research Bothacker-Sprinter | -1/Access Resources | -11 -10 -9 -8 -8 -8 -8 -7 -6 -6 -5 -5 -5 -5 -4 -4 -3 -3 -3 -3 -2 -1 ----------- Run | Jun Mat Mat Mat Gar Mat Gar Fac Fac DSF Fac Was Fac DSF Fac Ext Res Gar Res Arm Res Acc Matter Collected 1624 | 216 84 75 34 . 85 . 70 . 67 . 66 . 109 63 9 145 192 . 329 80 . Remotely . | . . . . . . . . . . . . . . . . . . . . . . Salvage Created 178 | . 161 17 . . . . . . . . . . . . . . . . . . . Parts 10 | . 8 2 . . . . . . . . . . . . . . . . . . . Haulers Intercepted . | . . . . . . . . . . . . . . . . . . . . . . Recyclers Shooed . | . . . . . . . . . . . . . . . . . . . . . . Parts Field Recycled . | . . . . . . . . . . . . . . . . . . . . . . Retrieved Matter . | . . . . . . . . . . . . . . . . . . . . . . Parts Self-Destructed . | . . . . . . . . . . . . . . . . . . . . . . Prevented . | . . . . . . . . . . . . . . . . . . . . . . Kills | -11 -10 -9 -8 -8 -8 -8 -7 -6 -6 -5 -5 -5 -5 -4 -4 -3 -3 -3 -3 -2 -1 ------- Run | Jun Mat Mat Mat Gar Mat Gar Fac Fac DSF Fac Was Fac DSF Fac Ext Res Gar Res Arm Res Acc Combat Hostiles Destroyed 6 | . 6 . . . . . . . . . . . . . . . . . . . . Guns 6 | . 6 . . . . . . . . . . . . . . . . . . . . Classes Destroyed 3 | . 2 1 . . . . . . . . . . . . . . . . . . . Watcher 2 | . . 2 . . . . . . . . . . . . . . . . . . . Swarmer 4 | . 4 . . . . . . . . . . . . . . . . . . . . Grunt 2 | . 2 . . . . . . . . . . . . . . . . . . . . Best Kill Streak 2 | . 2 2 . . . . . . . . . . . . . . . . . . . Combat Bots Only 2 | . 2 . . . . . . . . . . . . . . . . . . . . Max Kills in Single Turn 1 | . 1 1 . . . . . . . . . . . . . . . . . . . Gunslinging . | . . . . . . . . . . . . . . . . . . . . . . Exploded . | . . . . . . . . . . . . . . . . . . . . . . Melee . | . . . . . . . . . . . . . . . . . . . . . . Uniques/NPCs Destroyed . | . . . . . . . . . . . . . . . . . . . . . . Combat | -11 -10 -9 -8 -8 -8 -8 -7 -6 -6 -5 -5 -5 -5 -4 -4 -3 -3 -3 -3 -2 -1 -------- Run | Jun Mat Mat Mat Gar Mat Gar Fac Fac DSF Fac Was Fac DSF Fac Ext Res Gar Res Arm Res Acc Damage Taken 3363 | . 156 . . 178 9 85 130 . 83 . . 26 217 . 329 111 1071 . 771 197 . Core 981 | . 19 . . 59 9 40 27 . 42 . . 13 83 . 114 13 343 . 219 . . Absorbed by Shields 174 | . . . . 46 . 11 . . . . . . 77 . . . 40 . . . . Regen/Repaired (Parts) 22 | . 17 . . . . . 5 . . . . . . . . . . . . . . Core Remaining (%) 90 | 100 92 100 . . . 80 96 . 95 . . . 90 . 90 . . . 55 100 100 Volleys Fired 100 | . 12 5 . 1 . 1 12 . 1 . . 10 . 7 6 8 9 . 23 . 5 Largest 2 | . 2 2 . 1 . 1 1 . 1 . . 1 . 1 1 1 1 . 1 . 1 Hottest 130 | . 130 130 . 63 . 63 5 . 5 . . 5 . 5 5 5 30 . 35 . 10 Shots Fired 113 | . 24 6 . 1 . 1 12 . 1 . . 10 . 7 6 8 9 . 23 . 5 Gun 34 | . 24 6 . 1 . 1 . . . . . . . . . . 1 . 1 . . Cannon . | . . . . . . . . . . . . . . . . . . . . . . Launcher . | . . . . . . . . . . . . . . . . . . . . . . Special 79 | . . . . . . . 12 . 1 . . 10 . 7 6 8 8 . 22 . 5 Kinetic 2 | . . . . . . . . . . . . . . . . . 1 . 1 . . Thermal 27 | . 19 6 . 1 . 1 . . . . . . . . . . . . . . . Explosive . | . . . . . . . . . . . . . . . . . . . . . . Electromagnetic 5 | . 5 . . . . . . . . . . . . . . . . . . . . Robot Hit Streak 17 | . 15 16 . . . . 12 . 13 . . 9 . 16 17 9 5 . 12 . 15 Robot Miss Streak 2 | . 2 2 . . . . . . . . . 1 . . 2 1 1 . 1 . . Penetration Max . | . . . . . . . . . . . . . . . . . . . . . . Secondary Targets . | . . . . . . . . . . . . . . . . . . . . . . Shots Hit Robots 132 | . 14 6 . 1 6 2 10 . 1 . . 9 . 7 13 7 7 . 45 . 4 Core Hits 20 | . 12 8 . . . . . . . . . . . . . . . . . . . Critical Kills . | . . . . . . . . . . . . . . . . . . . . . . Critical Parts Destroyed . | . . . . . . . . . . . . . . . . . . . . . . Critical Strikes . | . . . . . . . . . . . . . . . . . . . . . . Melee Attacks 43 | . . . . 1 6 2 . . . . . . . . 9 . 2 . 23 . . Impact . | . . . . . . . . . . . . . . . . . . . . . . Slashing . | . . . . . . . . . . . . . . . . . . . . . . Piercing . | . . . . . . . . . . . . . . . . . . . . . . Sneak Attacks 22 | . . . . . 6 . . . . . . . . . 1 . . . 15 . . Combat Hostiles . | . . . . . . . . . . . . . . . . . . . . . . Follow-up Attacks . | . . . . . . . . . . . . . . . . . . . . . . Damage Inflicted 313 | . 187 97 . . . . . . . . . . . . . . . . 29 . . Guns 313 | . 187 97 . . . . . . . . . . . . . . . . 29 . . Cannons . | . . . . . . . . . . . . . . . . . . . . . . Explosions . | . . . . . . . . . . . . . . . . . . . . . . Melee . | . . . . . . . . . . . . . . . . . . . . . . Ramming . | . . . . . . . . . . . . . . . . . . . . . . Kinetic 29 | . . . . . . . . . . . . . . . . . . . 29 . . Thermal 233 | . 136 97 . . . . . . . . . . . . . . . . . . . Explosive . | . . . . . . . . . . . . . . . . . . . . . . Electromagnetic 51 | . 51 . . . . . . . . . . . . . . . . . . . . Impact . | . . . . . . . . . . . . . . . . . . . . . . Slashing . | . . . . . . . . . . . . . . . . . . . . . . Piercing . | . . . . . . . . . . . . . . . . . . . . . . Highest Corruption 5 | . 1 . . . 1 1 . . . . 4 5 5 . . . . . 1 1 . Average Corruption 1 | . 1 . . . 1 1 . . . . 4 4 5 . . . . . 1 1 . Corruption Purged . | . . . . . . . . . . . . . . . . . . . . . . Corruption Blocked . | . . . . . . . . . . . . . . . . . . . . . . Effects 10 | . 4 . . . 1 . . . . . 1 2 2 . . . . . . . . Message Errors 1 | . 1 . . . . . . . . . . . . . . . . . . . . Matter Fused 3 | . 1 . . . . . . . . . 1 1 . . . . . . . . . Energy Discharges 3 | . 1 . . . . . . . . . . . 2 . . . . . . . . Parts Rejected 1 | . . . . . . . . . . . . 1 . . . . . . . . . Data Loss (minor) 2 | . 1 . . . 1 . . . . . . . . . . . . . . . . Overload Shots . | . . . . . . . . . . . . . . . . . . . . . . Overflow Damage . | . . . . . . . . . . . . . . . . . . . . . . Projectiles . | . . . . . . . . . . . . . . . . . . . . . . Explosions . | . . . . . . . . . . . . . . . . . . . . . . Melee . | . . . . . . . . . . . . . . . . . . . . . . Knockbacks . | . . . . . . . . . . . . . . . . . . . . . . Impact . | . . . . . . . . . . . . . . . . . . . . . . Kinetic . | . . . . . . . . . . . . . . . . . . . . . . Secondary . | . . . . . . . . . . . . . . . . . . . . . . Self-Inflicted Damage . | . . . . . . . . . . . . . . . . . . . . . . Shots . | . . . . . . . . . . . . . . . . . . . . . . Rammed . | . . . . . . . . . . . . . . . . . . . . . . Targets Rammed . | . . . . . . . . . . . . . . . . . . . . . . Kicked . | . . . . . . . . . . . . . . . . . . . . . . Crushed . | . . . . . . . . . . . . . . . . . . . . . . Highest Temperature 239 | . 102 77 . 22 4 28 19 . . 3 3 3 . 64 239 . 8 . . . . Average Temperature 59 | . 35 53 . 9 4 13 8 . . 2 2 2 . 26 116 . 8 . . . . Received Heat Transfer 694 | . 48 . . 120 9 91 63 . . . . 18 . . 81 18 123 . 78 45 . Effects 2 | . . . . . . . . . . . . . . . 2 . . . . . . Interference 2 | . . . . . . . . . . . . . . . 2 . . . . . . Siege Activations . | . . . . . . . . . . . . . . . . . . . . . . Robots Corrupted . | . . . . . . . . . . . . . . . . . . . . . . Combat Hostiles . | . . . . . . . . . . . . . . . . . . . . . . Parts Fried . | . . . . . . . . . . . . . . . . . . . . . . Impact Corruptions . | . . . . . . . . . . . . . . . . . . . . . . Robots Melted . | . . . . . . . . . . . . . . . . . . . . . . Combat Hostiles . | . . . . . . . . . . . . . . . . . . . . . . Parts Melted 1 | . . 1 . . . . . . . . . . . . . . . . . . . Heat Transferred 362 | . 242 120 . . . . . . . . . . . . . . . . . . . Parts Sabotaged 2 | . . . . . . . . . . . . . . . . . . . 2 . . Parts Stolen . | . . . . . . . . . . . . . . . . . . . . . . Parts Stripped . | . . . . . . . . . . . . . . . . . . . . . . Power Chain Reactions . | . . . . . . . . . . . . . . . . . . . . . . Missiles Intercepted . | . . . . . . . . . . . . . . . . . . . . . . Alert | -11 -10 -9 -8 -8 -8 -8 -7 -6 -6 -5 -5 -5 -5 -4 -4 -3 -3 -3 -3 -2 -1 ------- Run | Jun Mat Mat Mat Gar Mat Gar Fac Fac DSF Fac Was Fac DSF Fac Ext Res Gar Res Arm Res Acc Peak Influence 363 | . 174 101 40 119 190 163 239 85 45 13 77 96 68 30 198 126 155 65 363 291 211 Initial 141 | . . 11 30 19 42 93 61 85 45 13 2 41 53 18 10 76 72 65 25 141 127 Average 89 | . 57 67 33 37 93 141 99 85 42 13 32 53 55 19 70 95 87 65 112 196 184 Maximum Alert Level 1 | . . . . . . . 1 . . . . . . . . . . . 1 1 1 Low Security (%) 93 | 100 100 100 100 100 100 100 97 100 100 100 100 100 100 100 100 100 100 100 74 60 88 Level 1 6 | . . . . . . . 2 . . . . . . . . . . . 25 39 11 Level 2 . | . . . . . . . . . . . . . . . . . . . . . . Level 3 . | . . . . . . . . . . . . . . . . . . . . . . Level 4 . | . . . . . . . . . . . . . . . . . . . . . . Level 5 . | . . . . . . . . . . . . . . . . . . . . . . High Security . | . . . . . . . . . . . . . . . . . . . . . . Max Security . | . . . . . . . . . . . . . . . . . . . . . . Squads Dispatched 9 | . . . . . . . 3 . 1 . . 2 . . . . . . 3 . . Investigation 5 | . . . . . . . 3 . . . . 1 . . . . . . 1 . . Extermination 2 | . . . . . . . . . . . . . . . . . . . 2 . . Reinforcement 2 | . . . . . . . . . 1 . . 1 . . . . . . . . . Assault . | . . . . . . . . . . . . . . . . . . . . . . Garrison . | . . . . . . . . . . . . . . . . . . . . . . Intercept . | . . . . . . . . . . . . . . . . . . . . . . Searches Triggered . | . . . . . . . . . . . . . . . . . . . . . . Construction Impeded . | . . . . . . . . . . . . . . . . . . . . . . Haulers Reinforced 1 | . . . . . . . . . . . . 1 . . . . . . . . . Active Scanning Responses . | . . . . . . . . . . . . . . . . . . . . . . Cargo Convoy Interrupts . | . . . . . . . . . . . . . . . . . . . . . . Stealth | -11 -10 -9 -8 -8 -8 -8 -7 -6 -6 -5 -5 -5 -5 -4 -4 -3 -3 -3 -3 -2 -1 --------- Run | Jun Mat Mat Mat Gar Mat Gar Fac Fac DSF Fac Was Fac DSF Fac Ext Res Gar Res Arm Res Acc Distress Signals 9 | . 2 . . . 1 . . . . . . . . . . . . . 5 1 . Communications Jammed 1 | . . . . . . . . . . . . 1 . . . . . . . . . Distress Signals 1 | . . . . . . . . . . . . 1 . . . . . . . . . Times Spotted 198 | . 12 4 . 13 7 6 16 . 4 . 5 4 2 . 14 6 28 . 65 11 1 Peak Tracking Total 15 | . 3 2 . 13 7 5 7 . 4 . 5 3 1 . 8 6 15 . 14 9 1 Tactical Retreats 24 | . . . . 1 2 1 3 . . . . . 1 . 2 1 3 . 9 1 . Traps | -11 -10 -9 -8 -8 -8 -8 -7 -6 -6 -5 -5 -5 -5 -4 -4 -3 -3 -3 -3 -2 -1 ------- Run | Jun Mat Mat Mat Gar Mat Gar Fac Fac DSF Fac Was Fac DSF Fac Ext Res Gar Res Arm Res Acc Traps Triggered 23 | . 2 . . 3 1 4 1 . 1 1 . . 5 . . . 4 . . 1 . Indirectly . | . . . . . . . . . . . . . . . . . . . . . . Trap Hack Attempts . | . . . . . . . . . . . . . . . . . . . . . . Triggered . | . . . . . . . . . . . . . . . . . . . . . . Disarmed . | . . . . . . . . . . . . . . . . . . . . . . Reprogrammed . | . . . . . . . . . . . . . . . . . . . . . . Reused . | . . . . . . . . . . . . . . . . . . . . . . Traps Extracted . | . . . . . . . . . . . . . . . . . . . . . . Installed . | . . . . . . . . . . . . . . . . . . . . . . Triggered . | . . . . . . . . . . . . . . . . . . . . . . Machines | -11 -10 -9 -8 -8 -8 -8 -7 -6 -6 -5 -5 -5 -5 -4 -4 -3 -3 -3 -3 -2 -1 ---------- Run | Jun Mat Mat Mat Gar Mat Gar Fac Fac DSF Fac Was Fac DSF Fac Ext Res Gar Res Arm Res Acc Machines Disabled 4 | . . . . 1 . 1 . . . . . . . . . . 1 . 1 . . Max in Single Turn 1 | . . . . 1 . 1 . . . . . . . . . . 1 . . . . Garrison Relay 4 | . . . . 1 . 1 . . . . . . . . . . 2 . . . . Machines Repaired . | . . . . . . . . . . . . . . . . . . . . . . Machines Sabotaged . | . . . . . . . . . . . . . . . . . . . . . . Overloaded Fab Kills . | . . . . . . . . . . . . . . . . . . . . . . Hacking | -11 -10 -9 -8 -8 -8 -8 -7 -6 -6 -5 -5 -5 -5 -4 -4 -3 -3 -3 -3 -2 -1 --------- Run | Jun Mat Mat Mat Gar Mat Gar Fac Fac DSF Fac Was Fac DSF Fac Ext Res Gar Res Arm Res Acc Machines Accessed 60 | . 8 3 2 . 5 1 7 1 . 1 . 4 . 2 5 2 1 . 10 3 5 Terminals 44 | . 7 3 1 . 4 1 4 1 . . . 4 . 2 5 1 1 . 4 3 3 Fabricators 6 | . . . . . . . 1 . . . . . . . . . . . 4 . 1 Repair Stations 3 | . 1 . . . . . 1 . . . . . . . . . . . 1 . . Recycling Units 1 | . . . . . . . . . . . . . . . . . . . 1 . . Scanalyzers 2 | . . . . . . . 1 . . . . . . . . . . . . . 1 Garrison Access 4 | . . . 1 . 1 . . . . 1 . . . . . 1 . . . . . Total Hacks 152 | . 25 9 6 . 9 1 30 1 . 1 . 9 . 3 10 4 1 . 26 5 12 Successful 85 | . 15 4 4 . 4 1 16 1 . 1 . 4 . 2 8 2 1 . 15 2 5 Failed 67 | . 10 5 2 . 5 . 14 . . . . 5 . 1 2 2 . . 11 3 7 Catastrophic 12 | . 3 3 1 . 1 . 1 . . . . 2 . . . . . . . 1 . Database Lockouts . | . . . . . . . . . . . . . . . . . . . . . . Manual 42 | . 11 4 4 . 2 . 10 . . . . 4 . . 3 . . . 4 . . Terminals 117 | . 23 9 4 . 8 1 19 1 . . . 9 . 3 10 2 1 . 16 5 6 Fabricators 12 | . . . . . . . 2 . . . . . . . . . . . 6 . 4 Repair Stations 7 | . 2 . . . . . 3 . . . . . . . . . . . 2 . . Recycling Units 2 | . . . . . . . . . . . . . . . . . . . 2 . . Scanalyzers 8 | . . . . . . . 6 . . . . . . . . . . . . . 2 Garrison Access 6 | . . . 2 . 1 . . . . 1 . . . . . 2 . . . . . Terminal Hacks 60 | . 13 4 2 . 3 1 8 1 . . . 4 . 2 8 . 1 . 10 2 1 Record 8 | . 3 . . . . . 1 . . . . 1 . . 1 . . . 2 . . Robot Analysis 3 | . 1 . . . . . 1 . . . . . . . . . . . . 1 . Prototype ID Bank 11 | . 2 2 . . 1 . 1 . . . . 2 . . 3 . . . . . . Open Door 4 | . . . . . . 1 . . . . . . . 1 1 . . . . . 1 Open DSF 3 | . . . . . . . 1 1 . . . 1 . . . . . . . . . Level Access Points 2 | . . . . . . . . . . . . . . . 1 . . . . 1 . Branch Access Points 5 | . 1 . 1 . . . . . . . . . . 1 . . . . 2 . . Emergency Access Points 3 | . 1 . . . . . . . . . . . . . 1 . . . 1 . . Machine Index 1 | . . 1 . . . . . . . . . . . . . . . . . . . Terminal Index 4 | . 1 . 1 . 1 . 1 . . . . . . . . . . . . . . Scanalyzer Index 1 | . . . . . . . . . . . . . . . . . . . 1 . . Alert Level 3 | . 1 . . . . . 1 . . . . . . . . . . . 1 . . Locate Traps 2 | . . . . . 1 . . . . . . . . . . . . . 1 . . Maintenance Status 3 | . 2 1 . . . . . . . . . . . . . . . . . . . Security Status 1 | . . . . . . . . . . . . . . . . . . . 1 . . Recall Investigation 1 | . . . . . . . 1 . . . . . . . . . . . . . . Hauler Manifests 1 | . . . . . . . . . . . . . . . 1 . . . . . . Registered Components 2 | . 1 . . . . . 1 . . . . . . . . . . . . . . Zone Layout 1 | . . . . . . . . . . . . . . . . . . . 1 . . Security Stations 1 | . . . . . . . . . . . . . . . . . 1 . . . . Fabricator Hacks 5 | . . . . . . . . . . . . . . . . . . . 3 . 2 Network Status 3 | . . . . . . . . . . . . . . . . . . . 3 . . Load Schematic 1 | . . . . . . . . . . . . . . . . . . . . . 1 Build 1 | . . . . . . . . . . . . . . . . . . . . . 1 Repair Station Hacks 5 | . 2 . . . . . 2 . . . . . . . . . . . 1 . . Scan Component 3 | . 1 . . . . . 1 . . . . . . . . . . . 1 . . Repair 2 | . 1 . . . . . 1 . . . . . . . . . . . . . . Recycling Unit Hacks 1 | . . . . . . . . . . . . . . . . . . . 1 . . Report Inventory 1 | . . . . . . . . . . . . . . . . . . . 1 . . Scanalyzer 8 | . . . . . . . 6 . . . . . . . . . . . . . 2 Insert Component 4 | . . . . . . . 3 . . . . . . . . . . . . . 1 Analyze 4 | . . . . . . . 3 . . . . . . . . . . . . . 1 Garrison Access Hacks 6 | . . . 2 . 1 . . . . 1 . . . . . 2 . . . . . Unlock Access 4 | . . . 1 . 1 . . . . 1 . . . . . 1 . . . . . Coupler Status 2 | . . . 1 . . . . . . . . . . . . 1 . . . . . Unauthorized Hacks . | . . . . . . . . . . . . . . . . . . . . . . Terminals . | . . . . . . . . . . . . . . . . . . . . . . Fabricators . | . . . . . . . . . . . . . . . . . . . . . . Repair Stations . | . . . . . . . . . . . . . . . . . . . . . . Recycling Units . | . . . . . . . . . . . . . . . . . . . . . . Scanalyzers . | . . . . . . . . . . . . . . . . . . . . . . Garrison Access . | . . . . . . . . . . . . . . . . . . . . . . Data Cores Recovered . | . . . . . . . . . . . . . . . . . . . . . . Used . | . . . . . . . . . . . . . . . . . . . . . . Hacking Detections 48 | . 6 3 1 . 5 . 6 . . . . 3 . 1 3 2 1 . 9 3 5 Full Trace Events 6 | . . . . . 1 . 3 . . . . 1 . . . . . . 1 . . Feedback Events 1 | . . . . . . . . . . . . 1 . . . . . . . . . Corruption 1 | . . . . . . . . . . . . 1 . . . . . . . . . Feedback Blocked . | . . . . . . . . . . . . . . . . . . . . . . Robot Schematics Acquired . | . . . . . . . . . . . . . . . . . . . . . . Robots Built 1 | . . . . . . . . . . . . . . . . . . . . . 1 Authchips . | . . . . . . . . . . . . . . . . . . . . . . Time 40 | . . . . . . . . . . . . . . . . . . . . . 40 Total Robot Build Rating 1 | . . . . . . . . . . . . . . . . . . . . . 1 Part Schematics Acquired 2 | . . . . . . . 1 . . . . . . . . . . . . . 1 Parts Built . | . . . . . . . . . . . . . . . . . . . . . . Authchips . | . . . . . . . . . . . . . . . . . . . . . . Time . | . . . . . . . . . . . . . . . . . . . . . . Total Part Build Rating . | . . . . . . . . . . . . . . . . . . . . . . Parts Repaired 2 | . 1 . . . . . 1 . . . . . . . . . . . . . . Time 45 | . 32 . . . . . 13 . . . . . . . . . . . . . . Parts Recycled . | . . . . . . . . . . . . . . . . . . . . . . Recycled Matter . | . . . . . . . . . . . . . . . . . . . . . . Retrieved Matter . | . . . . . . . . . . . . . . . . . . . . . . Retrieved Components . | . . . . . . . . . . . . . . . . . . . . . . Parts Scanalyzed 3 | . . . . . . . 2 . . . . . . . . . . . . . 1 Part Schematics Acquired 2 | . . . . . . . 1 . . . . . . . . . . . . . 1 Parts Damaged . | . . . . . . . . . . . . . . . . . . . . . . Bothacking | -11 -10 -9 -8 -8 -8 -8 -7 -6 -6 -5 -5 -5 -5 -4 -4 -3 -3 -3 -3 -2 -1 ------------ Run | Jun Mat Mat Mat Gar Mat Gar Fac Fac DSF Fac Was Fac DSF Fac Ext Res Gar Res Arm Res Acc Used RIF Installer 2 | . . . . 1 . . . . . . . . . . . . 1 . . . . Hotswap 1 | . . . . . . . . . . . . . . . . . 1 . . . . Robots Hacked 50 | . . . . 1 2 1 7 . 1 . . 5 . 2 4 3 5 . 17 . 2 Non-combat 27 | . . . . . 2 . 7 . . . . 4 . 2 3 3 . . 4 . 2 Combat 23 | . . . . 1 . 1 . . 1 . . 1 . . 1 . 5 . 13 . . Robot Hacks Applied 75 | . . . . 1 4 2 10 . 1 . . 6 . 5 10 5 7 . 20 . 4 parse_system 17 | . . . . 1 2 . 3 . 1 . . 1 . 1 2 . 1 . 4 . 1 no_distress 2 | . . . . . 1 . . . . . . . . . 1 . . . . . . generate_echo 9 | . . . . . . . 1 . . . . 1 . 2 1 3 . . . . 1 find_chute 1 | . . . . . . . 1 . . . . . . . . . . . . . . map_walls 2 | . . . . . 1 . . . . . . . . . . . . . . . 1 find_dsf 1 | . . . . . . . . . . . . . . 1 . . . . . . . locate_stockpiles 1 | . . . . . . . . . . . . . . 1 . . . . . . . find_recycling 2 | . . . . . . . 1 . . . . . . . . 1 . . . . . ignore_parts 2 | . . . . . . . 1 . . . . . . . . 1 . . . . . find_station 1 | . . . . . . . . . . . . . . . . . . . 1 . . release_backups 1 | . . . . . . . . . . . . . . . . . . . 1 . . check_alert 3 | . . . . . . . 1 . . . . 1 . . 1 . . . . . . locate_traps 1 | . . . . . . . . . . . . . . . 1 . . . . . . disarm_traps 1 | . . . . . . . . . . . . . . . 1 . . . . . . block_reporting 4 | . . . . . . . 1 . . . . 1 . . 2 . . . . . . mark_security 4 | . . . . . . . 1 . . . . 1 . . 1 . . . 1 . . find_shortcuts 2 | . . . . . . 1 . . . . . . . . . . 1 . . . . tweak_propulsion 1 | . . . . . . . . . . . . . . . . . 1 . . . . wipe_record 1 | . . . . . . . . . . . . . . . . . . . 1 . . reboot_system 1 | . . . . . . . . . . . . . . . . . 1 . . . . overwrite_iff 5 | . . . . . . . . . . . . 1 . . . . 1 . 3 . . streamctrl_high 1 | . . . . . . 1 . . . . . . . . . . . . . . . formatsys_high 12 | . . . . . . . . . . . . . . . . . 2 . 9 . 1 Relay Couplers Released 16 | . . . . 3 . 4 . . . . . . . . . . 9 . . . . Machine Destruction 16 | . . . . 3 . 4 . . . . . . . . . . 9 . . . . Attached 13 | . . . . 2 . 1 1 . . 1 . . . . . . 5 . 3 . . Fabnet Peak Effective % . | . . . . . . . . . . . . . . . . . . . . . . Robots Rewired 6 | . . . . . . . . . . . . . . . . . . . 6 . . Allies Hacked 1 | . . . . . . . . . . . . . . . . . . . 1 . . Hacks Repelled . | . . . . . . . . . . . . . . . . . . . . . . Allies | -11 -10 -9 -8 -8 -8 -8 -7 -6 -6 -5 -5 -5 -5 -4 -4 -3 -3 -3 -3 -2 -1 -------- Run | Jun Mat Mat Mat Gar Mat Gar Fac Fac DSF Fac Was Fac DSF Fac Ext Res Gar Res Arm Res Acc Total Allies 35 | . . . . . . 1 . . . . . 1 . . . . 3 . 28 . 2 Largest Group 10 | . . . . . . . . . . . . 1 . . . . 2 . 10 . 2 Highest-Rated Group 481 | . . . . . . . . . . . . 29 . . . . 128 . 481 . 51 Highest-Rated Ally 68 | . . . . . . . . . . . . 29 . . . . 64 . 68 . 45 Total Orders 3 | . . . . . . . . . . . . . . . . . 2 . 1 . . FOLLOW 1 | . . . . . . . . . . . . . . . . . 1 . . . . GUARD 1 | . . . . . . . . . . . . . . . . . 1 . . . . AID 1 | . . . . . . . . . . . . . . . . . . . 1 . . Ally Attacks 132 | . . . . . . 1 . . . . . 6 . . . . 11 . 114 . . Total Damage 4796 | . . . . . . 13 . . . . . 75 . . . . 428 . 4280 . . Kills 23 | . . . . . . . . . . . . . . . . . 4 . 19 . . Allies Corrupted . | . . . . . . . . . . . . . . . . . . . . . . Allies Melted 3 | . . . . . . . . . . . . . . . . . 1 . 2 . . Intel | -11 -10 -9 -8 -8 -8 -8 -7 -6 -6 -5 -5 -5 -5 -4 -4 -3 -3 -3 -3 -2 -1 ------- Run | Jun Mat Mat Mat Gar Mat Gar Fac Fac DSF Fac Was Fac DSF Fac Ext Res Gar Res Arm Res Acc Robot Analysis Total 3 | . 1 . . . . . 1 . . . . . . . . . . . . 1 . Derelict Logs Recovered . | . . . . . . . . . . . . . . . . . . . . . . Drone Launches . | . . . . . . . . . . . . . . . . . . . . . . Drone Recoveries . | . . . . . . . . . . . . . . . . . . . . . . Exploration | -11 -10 -9 -8 -8 -8 -8 -7 -6 -6 -5 -5 -5 -5 -4 -4 -3 -3 -3 -3 -2 -1 ------------- Run | Jun Mat Mat Mat Gar Mat Gar Fac Fac DSF Fac Was Fac DSF Fac Ext Res Gar Res Arm Res Acc Turns Passed 3684 | 55 584 120 17 138 171 89 644 5 35 13 31 82 63 120 180 94 242 32 683 124 162 Spaces Moved 6387 | 42 492 273 47 301 365 180 928 15 74 49 129 239 103 271 500 257 286 62 1191 287 296 Core 10 | 10 . . . . . . . . . . . . . . . . . . . . . Treads . | . . . . . . . . . . . . . . . . . . . . . . Legs 371 | 32 326 . . . . . . . . . . . . . . . 13 . . . . Wheels . | . . . . . . . . . . . . . . . . . . . . . . Hover . | . . . . . . . . . . . . . . . . . . . . . . Flight 6006 | . 166 273 47 301 365 180 928 15 74 49 129 239 103 271 500 257 273 62 1191 287 296 Fastest Speed 23 | 50 37 34 29 29 26 26 26 26 24 24 24 23 23 25 25 26 28 45 34 35 32 Average Speed 36 | 108 100 34 30 29 26 26 26 26 24 24 24 23 23 25 26 27 42 45 36 37 33 Slowest Speed 200 | 120 120 34 34 29 29 26 26 26 26 24 24 24 26 26 28 28 200 45 45 115 35 Overloaded Moves . | . . . . . . . . . . . . . . . . . . . . . . Propulsion Burnouts . | . . . . . . . . . . . . . . . . . . . . . . Robots Hopped 68 | . . 3 . . 7 2 8 . 1 . . . 1 1 9 . 22 . 8 3 3 Cave-ins Triggered . | . . . . . . . . . . . . . . . . . . . . . . Exploration Rate (%) 34 | 3 92 32 5 35 37 37 30 . 72 3 85 11 89 11 49 10 33 3 65 12 10 Regions Visited 21 Branch Regions 2 Pre-discovered Areas . | . . . . . . . . . . . . . . . . . . . . . . Known Exits Taken 14 | 1 1 1 1 . 1 . 1 1 . . . 1 . 1 1 1 . 1 1 1 . Unknown Exits Taken . | . . . . . . . . . . . . . . . . . . . . . . Scrap Searched . | . . . . . . . . . . . . . . . . . . . . . . Spaces Dug . | . . . . . . . . . . . . . . . . . . . . . . Terrain Destroyed . | . . . . . . . . . . . . . . . . . . . . . . Melee . | . . . . . . . . . . . . . . . . . . . . . . Projectile . | . . . . . . . . . . . . . . . . . . . . . . AOE . | . . . . . . . . . . . . . . . . . . . . . . Terrain Rammed . | . . . . . . . . . . . . . . . . . . . . . . Walls Destroyed . | . . . . . . . . . . . . . . . . . . . . . . Machines Disabled . | . . . . . . . . . . . . . . . . . . . . . . Actions | -11 -10 -9 -8 -8 -8 -8 -7 -6 -6 -5 -5 -5 -5 -4 -4 -3 -3 -3 -3 -2 -1 --------- Run | Jun Mat Mat Mat Gar Mat Gar Fac Fac DSF Fac Was Fac DSF Fac Ext Res Gar Res Arm Res Acc Total 7578 | 48 555 291 48 348 432 219 1318 15 88 50 128 259 138 316 535 275 377 64 1420 300 354 Wait 847 | . 33 4 1 10 49 3 357 . 9 . . 3 2 37 28 7 75 . 171 3 55 Move 6240 | 41 491 266 46 299 351 174 911 14 71 49 128 238 100 268 481 256 252 61 1174 280 289 Hop 55 | . . 3 . . 6 2 8 . 1 . . . 1 1 9 . 10 . 8 3 3 Pick Up 35 | . 5 5 . 1 3 2 5 . 2 . . 1 2 . . 1 4 . 3 1 . Fast Attach 50 | 7 3 1 1 2 3 1 . . 1 . . 2 3 2 1 1 6 3 9 2 2 Attach 24 | . 3 2 . 1 . . 4 1 . 1 . . . 1 1 . 3 . 5 2 . Detach 9 | . 3 . . 1 1 2 . . . . . . . . . . 1 . . 1 . Swap 22 | . 2 1 . . 5 . 6 . 1 . . 2 2 . . 1 1 . . 1 . Drop 40 | . 3 4 . 1 8 2 7 . 2 . . 3 2 . . 1 3 . 2 2 . Fire 100 | . 12 5 . 1 . 1 12 . 1 . . 10 . 7 6 8 9 . 23 . 5 Melee 43 | . . . . 1 6 2 . . . . . . . . 9 . 2 . 23 . . Ram . | . . . . . . . . . . . . . . . . . . . . . . Kick . | . . . . . . . . . . . . . . . . . . . . . . Crush . | . . . . . . . . . . . . . . . . . . . . . . Escape Stasis 111 | . . . . 31 . 30 8 . . . . . 26 . . . 11 . . 5 . Rewire 2 | . . . . . . . . . . . . . . . . . . . 2 . . Trap . | . . . . . . . . . . . . . . . . . . . . . . Miscellaneous . | . . . . . . . . . . . . . . . . . . . . . . Route ------- -11/Junkyard -10/Materials (discovered 4 exits: *Mat x3 / *Min) -9/Materials (discovered 2 exits: *Mat / *Min) -8/Materials -8/Garrison -8/Materials -8/Garrison -7/Factory (discovered 2 exits: *Fac / *Low) -6/Factory -6/DSF -5/Factory -5/Waste -5/Factory -5/DSF -4/Factory (discovered 4 exits: Upp x2 / *Ext x2) -4/Extension (discovered 2 exits: *Res x2) -3/Research -3/Garrison -3/Research -3/Armory (discovered 2 exits: *Res x2) -2/Research (discovered 3 exits: *Acc x3) -1/Access To Epsilon Eridani History --------- Turn | Location | Event 13 | -11/Junkyard | Identified exit to Materials 13 | -11/Junkyard | Discovered exit to Materials (range 16) 56 | -11/Junkyard | Entered Materials 56 | -10/Materials | Evolved 1 slot: Utility x1 109 | -10/Materials | Identified exit to Mines 109 | -10/Materials | Discovered exit to Mines (range 9) 309 | -10/Materials | Build established: Hacker-Mutant 371 | -10/Materials | Identified exit to Materials 371 | -10/Materials | Discovered exit to Materials (range 11) 516 | -10/Materials | Discovered exit to Materials (range 3) 570 | -10/Materials | Repaired Spread Laser 610 | -10/Materials | Discovered exit to Materials (range 13) 640 | -10/Materials | Entered another Materials area 640 | -9/Materials | Evolved 2 slots: Propulsion x1, Utility x1 686 | -9/Materials | Identified exit to Mines 686 | -9/Materials | Discovered exit to Mines (range 14) 754 | -9/Materials | Identified exit to Materials 754 | -9/Materials | Discovered exit to Materials (range 6) 760 | -9/Materials | Entered another Materials area 760 | -8/Materials | Evolved 2 slots: Propulsion x1, Utility x1 776 | -8/Materials | Identified exit to Garrison 777 | -8/Materials | Entered Garrison 806 | -8/Garrison | Triggered checkpoint 832 | -8/Garrison | Installed Relay Interface Framework 856 | -8/Garrison | Triggered checkpoint 874 | -8/Garrison | Garrison Relay disabled 898 | -8/Garrison | Triggered checkpoint 910 | -8/Garrison | Identified exit to Materials 910 | -8/Garrison | Discovered exit to Materials (range 8) 915 | -8/Garrison | Entered Materials 1076 | -8/Materials | Identified exit to Garrison 1086 | -8/Materials | Entered Garrison 1092 | -8/Garrison | Build established: Hacker-Sprinter 1094 | -8/Garrison | Triggered checkpoint 1098 | -8/Garrison | Garrison Relay disabled 1158 | -8/Garrison | Identified exit to Factory 1158 | -8/Garrison | Discovered exit to Factory (range 12) 1170 | -8/Garrison | Triggered checkpoint 1175 | -8/Garrison | Entered Factory 1175 | -7/Factory | Evolved 2 slots: Utility x2 1196 | -7/Factory | Repaired Datajack 1465 | -7/Factory | Build established: Hacker-Scout 1576 | -7/Factory | Identified exit to Lower Caves 1576 | -7/Factory | Discovered exit to Lower Caves (range 6) 1794 | -7/Factory | Identified exit to Factory 1794 | -7/Factory | Discovered exit to Factory (range 10) 1819 | -7/Factory | Entered another Factory area 1819 | -6/Factory | Evolved 2 slots: Propulsion x1, Utility x1 1824 | -6/Factory | Identified exit to DSF 1824 | -6/Factory | Entered DSF 1842 | -6/DSF | Additional patrols routed to DSF 1854 | -6/DSF | Identified exit to Factory 1854 | -6/DSF | Discovered exit to Factory (range 20) 1859 | -6/DSF | Entered Factory 1859 | -5/Factory | Evolved 2 slots: Utility x2 1865 | -5/Factory | Identified exit to Garrison 1872 | -5/Factory | Sucked down chute 1872 | -5/Factory | Entered Waste 1874 | -5/Waste | Spotted C-40 Crusher 1877 | -5/Waste | Spotted C-40 Crusher 1885 | -5/Waste | Spotted C-40 Crusher 1887 | -5/Waste | EMP discharged 1887 | -5/Waste | Spotted C-40 Crusher 1890 | -5/Waste | Spotted C-40 Crusher 1894 | -5/Waste | Spotted C-40 Crusher 1901 | -5/Waste | Identified exit to Factory 1901 | -5/Waste | Discovered exit to Factory (range 11) 1903 | -5/Waste | Entered Factory 1985 | -5/Factory | Identified exit to DSF 1985 | -5/Factory | Entered DSF 2010 | -5/DSF | Additional patrols routed to DSF 2021 | -5/DSF | Identified exit to Factory 2021 | -5/DSF | Discovered exit to Factory (range 18) 2048 | -5/DSF | Entered Factory 2048 | -4/Factory | Evolved 2 slots: Power x1, Weapon x1 2158 | -4/Factory | Identified exit to Upper Caves 2158 | -4/Factory | Identified exit to Extension 2168 | -4/Factory | Entered Extension 2192 | -4/Extension | Identified exit to Research 2266 | -4/Extension | Spotted B-86 Titan 2267 | -4/Extension | Spotted B-86 Titan 2301 | -4/Extension | Lost 3 parts (1n2u) 2348 | -4/Extension | Entered Research 2348 | -3/Research | Evolved 2 slots: Utility x2 2386 | -3/Research | Build established: Hacker-Ninja 2403 | -3/Research | Spotted B-86 Titan 2441 | -3/Research | Identified exit to Garrison 2442 | -3/Research | Entered Garrison 2446 | -3/Garrison | Triggered checkpoint 2456 | -3/Garrison | Garrison Relay disabled 2590 | -3/Garrison | Triggered checkpoint 2604 | -3/Garrison | Triggered checkpoint 2636 | -3/Garrison | Triggered checkpoint 2643 | -3/Garrison | Learned Research security intel 2648 | -3/Garrison | Garrison Relay disabled 2670 | -3/Garrison | Identified exit to Research 2670 | -3/Garrison | Discovered exit to Research (range 17) 2681 | -3/Garrison | Expanded RIF knowledge: Hotswap 2684 | -3/Garrison | Entered Research 2691 | -3/Research | Lost 12 parts (2p4n3u3w) 2697 | -3/Research | Identified exit to Armory 2697 | -3/Research | Discovered exit to Armory (range 12) 2716 | -3/Research | Entered Armory 2906 | -3/Armory | Assisted by bots powering up and referring to "LRC-V3" 3259 | -3/Armory | Identified exit to Research 3259 | -3/Armory | Discovered exit to Research (range 15) 3325 | -3/Armory | Build established: Bothacker-Mutant 3398 | -3/Armory | Discovered exit to Research (range 4) 3399 | -3/Armory | Entered Research 3399 | -2/Research | Evolved 2 slots: Utility x2 3474 | -2/Research | Identified exit to Access 3523 | -2/Research | Entered Access 3523 | -1/Access | Evolved 2 slots: Propulsion x1, Utility x1 3584 | -1/Access | Spotted B-99 Colossus 3655 | -1/Access | Fabricated K-01 Serf (x1) 3667 | -1/Access | Identified exit to Surface 3667 | -1/Access | Discovered exit to Surface (range 6) 3685 | *** | Escaped! Last Messages --------------- 03655_ Fabricator completes K-01 Serf. 03655_ Connecting with Fabricator... >>Load(Adv. Heavy Siege Treads) Uploading Adv. Heavy Siege Treads schematic... Loaded successfully: Adv. Heavy Siege Treads Rating: 9 Time: 69 Initiate build sequence. 03657_ Jacked Director 10a... >>parse_system Reading system data... 03666_ Connecting with Terminal... >>Open(Door) Sealed Barrier opened. 03667_ Director 10a reports 0b10 security level has risen to 1. 03667_ The Access Shell folds into the floor. 03667_ EXIT=FOUND: SURFACE 03676_ K-01 Serf cleans the Terminal. [Achievement: Epsilon Run] Map ----- +----------------------------------------------------+ | ?????????????????????????????????????????????????? | | ?????????????????????????????????????????????????? | | ?????????????????????????????????????????????????? | | ?????????????????????????????????????????????????? | | ?????????????????????????????????????????????????? | | ?????????????????????????????????????????????????? | | ?????????????????????????????????????????????????? | | ??????????????????????????????????????? ?????????? | | ?????????????????????????????????????? ?????????? | | ?????????????????????????????????????? #????????? | | ?????????????????????????????????????? #????????? | | ?????????????????????????????????????? #????????? | | ?????????????????????????????????????? #????????? | | ??????????????????????H??????????????? #????????? | | ?????????????????????????????????????# #????????? | | ?????????????????????????????????????# +????????? | | ?????????????????????????????????????# #????????? | | ?????????????????????????????????????# #????????? | | ?????????????????????????????????????# #????????? | | ?????????????????????????????###?????# #????????? | | ????????????????????########## ####### #????????? | | ????????????????????" #????????? | | ????????????????????" #????????? | | ????????????????????" #????????? | | ????????????????????" k #????????? | | ????????????????????" "@ R #????????? | | ????????????????????" "" #????????? | | ????????????????????" k #????????? | | ????????????????????" #????????? | | ????????????????????" o """ """ #????????? | | ????????????????????" """T""" #????????? | | ????????????????????########## ####### #????????? | | ?????????????????????????????###?????# #????????? | | ?????????????????????????????????????# #????????? | | ?????????????????????????????????????# #????????? | | ?????????????????????????????????????# #????????? | | ?????????????????????????????????????# #????????? | | ???????????????????????????########### #????????? | | ???????????????????????????# + #????????? | | ???????????????????????????# # #????????? | | ???????????????????????????# # #????????? | | ???????????????????????????# # #????????? | | ???????????????????????????# # #????????? | | ???????????????????????????# + #????????? | | ???????????????????????????# # ########## | | ???????????????????????????# ! # ## ] | | ???????????????????????????########### ## | | ????????????????????????????????????# # """"" | | ????????????????????????????????????# # "" F" | | ????????????????????????????????????# / "" "" | +----------------------------------------------------+ Best States ------------- Heat Dissipation 52 Energy Generation 38 Energy Capacity 325 Matter Stores 300 Matter Capacity 300 Sight Range 22 Robot Scan Range 15 Terrain Scan Density 10 Jamming Range 14 Resistance: KI 35 Resistance: TH 35 Resistance: EX 35 Resistance: EM 35 Resistance: I 35 Resistance: S 35 Resistance: P 35 Evasion (%) 65 Targeting Accuracy 10 Offensive Hacking 20 Relay Coupler Types 5 Relay Coupler Value 318 Authchip Count 1 Item Schematics ----------------- Spear | -7/Factory | Scanalyzed Adv. Heavy Siege Treads | -1/Access | Scanalyzed Robot Schematics ------------------ None Fabricated ------------ K-01 Serf | x1 | -1/Access | Preloaded Alien Tech Used ----------------- None Achievements -------------- Assimilation Complete Epsilon Run Factory Defaults Challenges ------------ None Game ------ Seed SpectralMachineSource Manual? 0 Play Time 02:01:26 Cumulative 35.8 hours Start 2023.11.19 @ 01:52:47 End 2023.11.19 @ 04:45:52 Sessions 1 Manual Loads 0 Difficulty Explorer Special Mode None Game No. 15 Rogue 0 Adventurer 0 Explorer 15 Win Type 0 Total 2 Types 1/0/1/0/0/0/0/0/0 Lore% 20 Gallery% 35 Achievement% 33 Wizard Run 0 Options --------- ASCII 0 Keyboard 1 Movement Numpad Keybinds 0 Fullscreen 0 Font 16/SmallcapsGlow Map View 76x50 Tactical HUD 1 Map Filters NONE Filters NONE Steam 1 RUN: 04ef546f-9cd4-4365-a005-0d16d1aa5702